bitfinex-derivatives/quotes_ETHF0:USTF0_20241023
["timestamp","ask_amount","ask_price","bid_price","bid_amount"]
[1729694995378,7.23596688,2574.2,2574.1,0.38873]
[1729694997172,7.62468688,2574.2,2574.1,0.38873]
[1729694997371,7.23596688,2574.2,2574.1,0.38873]
[1729694998267,7.62468688,2574.2,2574.1,0.38873]
[1729694998466,7.23596688,2574.2,2573.7,1.2396]
[1729694998675,0.38875,2574.0,2573.9,0.38875]
[1729694998872,4.20596688,2574.2,2573.7,1.2396]
[1729694999174,3.03,2573.8,2573.7,1.62838]
[1729694999573,7.10896816,2573.8,2573.7,1.62838]
[1729695000073,4.07896816,2573.8,2573.7,1.62838]
[1729695000576,4.46774816,2573.8,2573.7,0.99409]
[1729695001370,4.07896816,2573.8,2573.7,0.99409]
[1729695001994,4.46774816,2573.8,2573.7,0.99409]
[1729695002176,7.49774816,2573.8,2573.7,0.38879]
[1729695002470,7.49774816,2573.8,2573.6,40.8]
[1729695002471,0.38879,2573.7,2573.6,40.8]
[1729695002877,4.56508729,2573.7,2573.6,40.8]
[1729695003073,4.17629729,2573.7,2573.6,0.38881]
[1729695003270,4.56508729,2573.7,2573.6,0.38881]
[1729695003470,4.17629729,2573.7,2573.4,0.6108]
[1729695003771,4.17629729,2573.7,2573.6,0.38881]
[1729695003973,4.56508729,2573.7,2573.6,0.38881]
[1729695004278,4.56508729,2573.7,2573.5,40.8]
[1729695004279,0.38881,2573.6,2573.5,41.18881]
[1729695004571,4.29576274,2573.6,2573.5,40.8]
[1729695004772,4.29576274,2573.6,2573.5,41.18882]
[1729695004977,3.41879,2573.8,2573.6,0.38881]
[1729695004978,4.29576274,2573.7,2573.6,0.38881]
[1729695005178,3.41879,2573.8,2573.6,0.38881]
[1729695005376,0.38879,2573.7,2573.6,0.38881]
[1729695005570,4.51155985,2573.7,2573.6,0.38881]
[1729695006079,4.12276985,2573.7,2573.6,0.38881]
[1729695006777,4.51155985,2573.7,2573.6,0.38881]
[1729695007773,4.12276985,2573.7,2573.5,40.8]
[1729695007976,3.41881,2573.6,2573.5,40.8]
[1729695008278,8.36455764,2573.6,2573.5,41.18882]
[1729695008477,8.36455764,2573.6,2573.1,3.2078]
[1729695008478,14.89134764,2573.6,2573.1,3.2078]
[1729695008681,3.03,2573.2,2573.1,3.59668]
[1729695008980,7.32704764,2573.2,2573.1,44.39668]
[1729695009979,4.29704764,2573.2,2573.1,44.39668]
[1729695010678,3.03,2574.0,2573.9,0.38876]
[1729695010976,7.63337165,2574.0,2573.9,0.38876]
[1729695011175,7.90362165,2574.0,2573.9,0.38876]
[1729695011775,4.21462165,2574.0,2573.9,0.38876]
[1729695011976,4.322,2574.2,2574.1,0.38873]
[1729695012284,8.61940609,2574.2,2574.1,0.38873]
[1729695012590,7.32740609,2574.2,2574.1,0.38873]
[1729695013377,7.71612609,2574.2,2574.1,0.38873]
[1729695013578,7.71613609,2574.2,2574.0,0.38873]
[1729695013782,7.32740609,2574.2,2574.1,0.38873]
[1729695014383,7.71612609,2574.2,2574.1,0.38873]
[1729695015785,11.60092609,2574.2,2574.1,0.38873]
[1729695015982,3.03,2574.2,2574.1,0.38873]
[1729695018881,7.30780602,2574.2,2574.1,0.38873]
[1729695019180,4.27780602,2574.2,2574.1,7.48133]
[1729695019380,3.03,2574.4,2574.3,0.3887]
[1729695019702,1.2478,2574.6,2574.5,0.38867]
[1729695019703,4.2778,2574.6,2574.5,0.38867]
[1729695020085,8.41992448,2574.6,2574.5,0.38867]
[1729695020684,4.14212448,2574.6,2574.5,0.38867]
[1729695020991,3.03,2574.8,2574.7,0.38864]
[1729695021487,7.10016884,2574.8,2574.7,0.38864]
[1729695022186,7.48879884,2574.8,2574.7,0.38864]
[1729695022576,7.10016884,2574.8,2574.7,0.38864]
[1729695024085,7.48880884,2574.8,2574.6,1.04855]
[1729695025183,7.48880884,2574.8,2574.1,0.97184]
[1729695025184,6.914,2574.7,2574.2,0.6236]
[1729695025388,6.914,2574.7,2574.2,1.01231]
[1729695025389,3.03,2574.3,2574.2,1.01231]
[1729695025589,3.03,2574.3,2574.2,0.38871]
[1729695025792,7.75401624,2574.3,2574.2,0.38871]
[1729695025984,8.14271624,2574.3,2574.2,0.38871]
[1729695026187,7.75401624,2574.3,2574.2,0.38871]
[1729695026389,8.14271624,2574.3,2574.2,0.38871]
[1729695028985,8.14271624,2574.3,2574.0,3.8674]
[1729695028986,7.75401624,2574.3,2574.0,3.8674]
[1729695029191,0.6537,2574.2,2574.0,3.8674]
[1729695029391,1.04243,2574.2,2574.1,0.38873]
[1729695029890,5.40427534,2574.2,2574.1,0.38873]
[1729695031288,5.01554534,2574.2,2574.1,0.38873]
[1729695031681,4.36184534,2574.2,2574.1,0.38873]
[1729695034492,4.36184534,2574.2,2574.1,4.27353]
[1729695034696,174.987,2590.5,2574.6,0.38866]
[1729695034697,3.673,2574.7,2574.6,0.38866]
[1729695034889,6.2378,2574.9,2574.8,0.38863]
[1729695035287,4.43129403,2574.8,2574.2,0.611]
[1729695035483,3.03,2574.4,2574.3,0.3887]
[1729695035692,3.03,2574.4,2574.0,0.97186]
[1729695035892,1.0317,2574.3,2574.2,0.38871]
[1729695036198,5.37217557,2574.3,2574.2,0.38871]
[1729695036390,4.98347557,2574.3,2574.2,0.38871]
[1729695037099,5.37217557,2574.3,2574.2,0.38871]
[1729695037298,4.98347557,2574.3,2574.2,0.38871]
[1729695038284,4.34047557,2574.3,2574.2,0.38871]
[1729695039689,0.38873,2574.2,2574.1,0.38872]
[1729695039990,7.73808188,2574.2,2574.1,0.38872]
[1729695040201,7.34935188,2574.2,2574.1,0.38872]
[1729695040396,7.73807188,2574.2,2574.1,0.38872]
[1729695040900,7.34935188,2574.2,2573.8,41.77195]
[1729695041092,1.00764,2574.1,2574.0,0.38873]
[1729695041999,0.38876,2574.0,2573.9,0.38875]
[1729695042189,4.04876,2574.0,2573.9,0.38875]
[1729695042390,0.38878,2573.9,2573.8,0.38877]
[1729695042587,1.04038,2573.9,2573.8,0.38877]
[1729695042993,5.42604324,2573.9,2573.8,0.38877]
[1729695043493,0.38878,2573.8,2573.7,1.02158]
[1729695043893,4.80730648,2573.8,2573.7,1.02158]
[1729695044091,4.80730648,2573.8,2573.7,0.38878]
[1729695044293,7.44852648,2573.8,2573.6,41.4044]
[1729695044490,1.02159,2573.7,2573.6,40.8]
[1729695044698,0.38882,2573.5,2573.4,1.03863]
[1729695044907,3.41882,2573.6,2573.5,0.38882]
[1729695045304,7.80744757,2573.6,2573.5,0.38882]
[1729695047104,0.38882,2573.5,2573.4,1.03863]
[1729695047302,0.38882,2573.5,2573.4,0.38883]
[1729695047501,4.43441899,2573.5,2573.4,0.38883]
[1729695048006,4.04559899,2573.5,2573.4,0.38883]
[1729695048199,4.43441899,2573.5,2573.4,0.38883]
[1729695048399,4.43442899,2573.5,2573.4,0.38884]
[1729695048707,0.38884,2573.4,2573.3,44.39664]
[1729695049004,5.31785701,2573.4,2573.3,44.39664]
[1729695050206,5.31785701,2573.4,2573.1,0.38887]
[1729695050207,0.38887,2573.2,2573.1,0.38887]
[1729695050401,3.41887,2573.2,2573.1,0.38887]
[1729695050601,7.81069702,2573.2,2573.1,0.38887]
[1729695051108,7.42182702,2573.2,2573.1,0.38887]
[1729695051703,7.81069702,2573.2,2573.1,0.38887]
[1729695052204,7.42182702,2573.2,2573.1,0.38887]
[1729695052508,7.42182702,2573.2,2573.1,0.38888]
[1729695052509,7.81071702,2573.2,2573.1,0.38888]
[1729695053309,0.38889,2573.1,2573.0,0.38888]
[1729695054406,7.42182702,2573.2,2572.9,41.4329]
[1729695054606,7.42182702,2573.2,2573.1,0.38888]
[1729695054607,7.81069702,2573.2,2573.1,0.38888]
[1729695056809,4.39182702,2573.2,2573.1,0.38888]
[1729695057403,7.81070702,2573.2,2572.9,40.8]
[1729695057712,7.81070702,2573.2,2573.1,0.38888]
[1729695057907,7.42182702,2573.2,2572.9,40.8]
[1729695058106,0.3889,2573.1,2573.0,0.3889]
[1729695058313,0.3889,2573.0,2572.9,40.8]
[1729695058512,0.38893,2572.8,2572.7,0.38894]
[1729695058707,3.41893,2572.8,2572.7,0.38894]
[1729695058911,3.41893,2572.8,2572.6,0.6382]
[1729695058912,7.46593962,2572.8,2572.6,41.4382]
[1729695059307,7.46593962,2572.8,2572.7,0.38894]
[1729695059611,7.85486962,2572.8,2572.7,0.38894]
[1729695060618,7.46593962,2572.8,2572.7,0.38894]
[1729695060814,7.46593962,2572.8,2572.5,41.4116]
[1729695061008,3.41896,2572.6,2572.5,40.8]
[1729695061318,3.41896,2572.6,2572.5,41.18897]
[1729695061319,7.87258092,2572.6,2572.5,41.18897]
[1729695061617,7.48362092,2572.6,2572.4,0.38899]
[1729695061915,0.38904,2572.1,2572.0,0.38905]
[1729695062115,3.41904,2572.1,2572.0,40.8]
[1729695062614,3.41904,2572.1,2572.0,41.18905]
[1729695062615,7.58084206,2572.1,2572.0,41.18905]
[1729695063017,7.19180206,2572.1,2572.0,0.38905]
[1729695063216,7.19180206,2572.1,2571.5,3.2078]
[1729695063510,0.6503,2572.0,2571.9,0.38906]
[1729695063917,7.19180206,2572.1,2571.8,0.6304]
[1729695064112,4.16180206,2572.1,2572.0,0.38905]
[1729695064517,4.33804856,2572.2,2572.1,0.38904]
[1729695064815,3.03,2572.3,2572.2,0.38902]
[1729695065517,0.6503,2572.6,2572.2,0.6334]
[1729695065719,3.03,2572.5,2572.3,0.6369]
[1729695065924,3.03,2572.5,2572.4,0.38899]
[1729695066122,3.03,2572.5,2572.4,4.27619]
[1729695066308,3.03,2572.7,2572.6,0.38896]
[1729695067717,7.34887886,2572.7,2572.4,3.59678]
[1729695067919,3.03,2572.5,2572.4,3.59678]
[1729695068229,7.73784886,2572.5,2572.4,3.2078]
[1729695068410,11.86347886,2572.5,2571.7,1.58393]
[1729695068610,3.03,2572.1,2572.0,3.59685]
[1729695069011,10.6225234,2572.1,2571.7,1.2481]
[1729695069211,6.2378,2571.8,2570.7,3.2078]
[1729695069517,6.2378,2571.8,2570.7,1.04745]
[1729695069518,3.03,2570.8,2570.7,1.04745]
[1729695070415,7.40822375,2570.8,2570.7,0.38925]
[1729695073018,7.40822375,2570.8,2570.5,40.8]
[1729695073226,3.03,2570.7,2570.6,0.38925]
[1729695073715,3.03,2570.7,2570.5,40.8]
[1729695073716,10.75307863,2570.7,2570.5,40.8]
[1729695073918,10.75307863,2570.7,2570.6,0.38926]
[1729695074123,7.54527863,2570.7,2570.6,0.38926]
[1729695075526,10.75307863,2570.7,2570.6,0.38926]
[1729695075722,10.75307863,2570.7,2570.5,40.8]
[1729695075723,0.38926,2570.6,2570.5,40.8]
[1729695075919,0.38926,2570.6,2569.2,1.0169533]
[1729695075920,4.5463,2570.6,2569.4,4.18142]
[1729695076125,3.03,2569.5,2569.4,3.59724]
[1729695076325,5.00250374,2570.6,2569.7,0.38939]
[1729695076326,3.2078,2570.0,2569.7,0.38939]
[1729695076724,3.03,2569.8,2569.7,0.38939]
[1729695077024,3.03,2569.8,2569.7,40.8]
[1729695077222,3.03,2569.8,2569.7,45.0806]
[1729695078316,0.38941,2569.7,2569.3,0.38945]
[1729695078517,0.38941,2569.7,2568.9,3.2078]
[1729695078518,3.03,2569.5,2568.9,3.2078]
[1729695078730,3.2078,2569.7,2568.9,3.2078]
[1729695078731,3.03,2569.1,2569.0,41.1895]
[1729695079118,3.03,2569.3,2569.0,44.6928]
[1729695079320,3.03,2569.3,2569.2,0.38947]
[1729695079524,3.03,2569.3,2569.2,4.28147]
[1729695081530,3.03,2569.3,2569.2,0.38947]
[1729695082032,3.03,2569.3,2569.0,41.1895]
[1729695082033,0.38948,2569.2,2569.0,41.1895]
[1729695082326,0.38948,2569.2,2568.4,0.97398]
[1729695082327,0.38951,2569.0,2568.8,0.38952]
[1729695082528,3.03,2568.9,2568.6,3.2078]
[1729695082738,3.03,2568.7,2568.6,3.59736]
[1729695083230,3.03,2568.7,2568.5,40.8]
[1729695083534,3.03,2568.6,2568.5,40.8]
[1729695083727,3.03,2568.6,2568.5,41.18958]
[1729695083928,7.19709822,2568.6,2568.5,41.18958]
[1729695084329,7.19709822,2568.6,2568.5,0.38958]
[1729695086929,4.16709822,2568.6,2568.5,4.28318]
[1729695087233,6.2378,2569.5,2569.0,0.3895]
[1729695087433,6.2378,2569.5,2569.4,0.38944]
[1729695087633,6.2378,2569.5,2569.4,41.18944]
[1729695088031,0.38941,2569.7,2569.4,40.8]
[1729695088032,3.03,2569.7,2569.4,40.8]
[1729695088336,1.29,2569.9,2569.4,40.8]
[1729695088526,1.29,2569.9,2569.8,0.38938]
[1729695088728,1.29,2569.9,2569.4,40.8]
[1729695088729,5.72667376,2569.9,2569.4,40.8]
[1729695088928,3.74,2569.7,2569.6,0.38941]
[1729695089331,3.74,2569.7,2569.4,40.8]
[1729695089332,15.66507376,2569.7,2569.4,41.18944]
[1729695089528,11.38447376,2569.7,2569.4,40.8]
[1729695089734,12.67447376,2569.7,2569.4,40.8]
[1729695089936,13.06387376,2569.7,2569.4,41.18943]
[1729695090239,11.38447376,2569.7,2568.9,3.8725]
[1729695090540,11.38447376,2569.7,2569.5,0.38942]
[1729695090838,11.38447376,2569.7,2569.6,0.38941]
[1729695091841,3.2078,2569.7,2569.6,4.28061]
[1729695092038,7.95208489,2569.7,2569.6,40.8]
[1729695092239,0.38942,2569.6,2569.3,0.38945]
[1729695092438,0.38942,2569.6,2569.2,0.38947]
[1729695092439,7.33725,2569.4,2569.2,0.38947]
[1729695092935,4.4081739,2569.3,2569.2,0.38947]
[1729695095046,6.9478,2569.4,2568.9,40.8]
[1729695095345,3.2078,2569.4,2569.3,0.38946]
[1729695095543,6.9478,2569.4,2569.3,0.38946]
[1729695095730,11.15129785,2569.4,2569.3,0.38946]
[1729695095933,11.15129785,2569.4,2568.9,40.8]
[1729695096134,11.54074785,2569.4,2569.2,0.38947]
[1729695096345,12.44229785,2569.4,2569.1,0.38948]
[1729695096647,0.3895,2569.0,2568.9,40.8]
[1729695096847,3.5973,2569.0,2568.8,0.38953]
[1729695097144,4.12952,2568.9,2568.7,0.38955]
[1729695097340,4.77322,2568.9,2568.7,0.38955]
[1729695097540,4.46861735,2568.8,2568.7,0.38955]
[1729695097738,4.46861735,2568.8,2568.6,0.38956]
[1729695097739,4.85815735,2568.8,2568.6,0.38956]
[1729695097939,3.2078,2568.7,2568.6,0.38956]
[1729695099136,7.33041,2568.7,2568.4,40.8]
[1729695099544,7.71997,2568.7,2568.5,0.38958]
[1729695099739,0.38957,2568.6,2568.4,41.18959]
[1729695099935,3.74,2568.6,2568.4,40.8]
[1729695100139,4.11968289,2568.5,2568.4,0.38959]
[1729695103346,3.2078,2568.7,2568.6,0.38957]
[1729695103738,3.2078,2568.7,2568.6,4.28237]
[1729695104344,3.2078,2568.7,2568.3,40.8]
[1729695104541,3.2078,2568.7,2568.6,0.38957]
[1729695104745,3.2078,2568.7,2568.3,40.8]
[1729695104947,3.59736,2568.7,2568.5,0.38957]
[1729695105249,3.2078,2568.7,2568.6,0.38957]
[1729695105643,3.2078,2568.7,2568.6,4.28237]
[1729695105843,3.2078,2568.7,2568.6,0.38957]
[1729695107449,4.5398,2569.0,2568.9,0.38952]
[1729695107775,3.2078,2569.0,2568.9,0.38952]
[1729695108249,3.2078,2569.0,2568.9,4.28232]
[1729695109550,6.9186,2569.5,2568.9,7.1006]
[1729695109742,3.04,2569.3,2569.2,0.38947]
[1729695111355,3.42946,2569.3,2569.2,0.38947]
[1729695111650,3.04,2569.3,2569.2,0.38947]
[1729695113049,3.42946,2569.3,2569.2,0.38947]
[1729695113248,3.04,2569.3,2569.2,0.38947]
[1729695113848,6.2478,2569.5,2569.4,0.38944]
[1729695114045,3.04,2569.7,2569.3,7.0998]
[1729695114248,3.04,2569.5,2569.4,0.38944]
[1729695114755,3.04,2569.5,2569.4,41.18944]
[1729695115843,3.8336,2569.9,2569.4,41.18944]
[1729695116045,3.2078,2570.4,2569.6,3.2078]
[1729695116246,3.04,2570.1,2569.7,0.624]
[1729695116449,3.04,2569.9,2569.8,0.38938]
[1729695117155,3.42938,2569.9,2569.7,0.624]
[1729695117367,3.42938,2569.9,2569.8,0.38938]
[1729695117558,3.42938,2569.9,2569.4,41.7736]
[1729695117750,1.332,2569.9,2569.5,0.38943]
[1729695117980,3.42941,2569.6,2569.5,0.38943]
[1729695118152,3.42942,2569.6,2569.3,0.6527]
[1729695118351,3.42942,2569.6,2569.4,0.38943]
[1729695118660,3.42942,2569.6,2569.5,0.38943]
[1729695119358,3.04,2569.6,2569.5,0.38943]
[1729695119858,3.04,2569.6,2569.4,0.38943]
[1729695119859,0.38943,2569.5,2569.4,0.38943]
[1729695120048,7.48291021,2569.6,2569.5,0.38943]
[1729695120361,7.87232021,2569.6,2569.5,0.38943]
[1729695120564,7.48291021,2569.6,2569.5,0.38943]
[1729695120884,7.48291021,2569.6,2569.2,0.6347]
[1729695121063,7.87233021,2569.6,2569.5,0.38943]
[1729695121365,7.87233021,2569.6,2569.4,0.38943]
[1729695121569,7.48291021,2569.6,2569.5,0.38943]
[1729695122258,3.2078,2569.7,2569.6,0.38941]
[1729695122956,3.2078,2569.7,2569.2,0.6347]
[1729695123158,3.04,2569.6,2569.5,0.38942]
[1729695125662,3.04,2569.6,2568.7,3.04]
[1729695125663,0.38952,2569.0,2568.8,0.38953]
[1729695125974,0.38952,2569.0,2568.4,0.6408]
[1729695125975,3.04,2568.9,2568.4,0.6408]
[1729695126158,8.74151035,2568.9,2568.4,1.61479]
[1729695126353,9.13104035,2568.9,2568.7,0.38954]
[1729695126566,9.13104035,2568.9,2568.4,1.61479]
[1729695126567,8.74151035,2568.9,2568.4,0.6408]
[1729695126962,8.74151035,2568.9,2568.7,0.38954]
[1729695126963,9.13104035,2568.9,2568.7,0.38954]
[1729695127155,9.13104035,2568.9,2568.4,0.6408]
[1729695127156,8.74151035,2568.9,2568.4,0.6408]
[1729695127353,3.04,2568.5,2568.4,1.0304]
[1729695127854,3.04,2568.5,2568.4,4.924]
[1729695128566,3.04,2568.7,2568.6,0.38956]
[1729695130767,4.3407,2568.9,2568.6,3.8928]
[1729695130962,4.3407,2568.9,2568.4,1.61479]
[1729695130963,3.04,2568.9,2568.8,0.38953]
[1729695131162,3.2078,2569.0,2568.9,0.38952]
[1729695131362,1.3271,2569.3,2569.2,0.38947]
[1729695131363,0.6748,2569.3,2569.2,0.38947]
[1729695131563,3.42946,2569.3,2569.2,41.18947]
[1729695131967,3.04,2569.3,2569.2,41.18947]
[1729695132861,3.2078,2569.4,2569.3,0.38946]
[1729695134060,3.2078,2569.4,2569.3,4.28146]
[1729695134663,0.38947,2569.3,2569.1,0.38948]
[1729695134866,3.04,2569.2,2569.1,0.38948]
[1729695135071,3.04,2569.2,2568.9,0.38951]
[1729695135268,3.04,2569.0,2568.9,0.38951]
[1729695135774,3.04,2569.0,2568.6,4.18171]
[1729695135775,0.38954,2568.8,2568.7,0.38954]
[1729695136073,3.04,2568.8,2568.5,42.075]
[1729695136266,3.42957,2568.6,2568.5,0.38957]
[1729695136574,3.04,2568.6,2568.5,0.38957]
[1729695136869,3.04,2568.6,2568.5,41.18957]
[1729695137672,6.63734,2568.8,2568.6,0.38955]
[1729695137869,6.2478,2568.8,2568.6,0.38957]
[1729695138069,6.2478,2568.8,2568.5,40.8]
[1729695138275,6.2478,2568.8,2568.2,0.6177]
[1729695138276,3.04,2568.6,2568.2,0.6177]
[1729695138469,3.4296,2568.4,2568.3,0.38961]
[1729695138770,3.4296,2568.4,2568.3,41.18961]
[1729695139366,3.04,2568.4,2568.3,41.18961]
[1729695139575,3.4296,2568.4,2568.3,41.18961]
[1729695139973,3.04,2568.4,2568.3,41.18961]
[1729695140567,3.4296,2568.4,2568.3,41.18961]
[1729695140972,3.4296,2568.4,2568.3,40.8]
[1729695140973,4.0581,2568.4,2568.3,40.8]
[1729695141168,4.0581,2568.4,2568.3,41.18961]
[1729695141368,4.0581,2568.4,2568.3,40.8]
[1729695141869,3.6685,2568.4,2568.0,0.636]
[1729695142068,4.0581,2568.4,2568.3,0.38961]
[1729695142667,0.6285,2568.4,2568.3,0.38961]
[1729695143970,0.6285,2568.4,2568.2,0.38962]
[1729695144175,1.2696,2568.4,2568.0,1.61014]
[1729695144375,1.2696,2568.4,2568.3,0.38961]
[1729695144877,0.6285,2568.4,2568.3,0.38961]
[1729695145667,3.2078,2568.5,2568.3,3.8936]
[1729695145874,4.4988,2569.4,2568.7,0.97385]
[1729695146067,4.4988,2569.4,2568.8,0.6341]
[1729695146068,3.10566314,2569.3,2568.8,0.6341]
[1729695146271,3.04,2569.3,2568.8,0.6341]
[1729695146479,3.04,2569.1,2569.0,0.3895]
[1729695146873,7.18094059,2569.1,2569.0,0.3895]
[1729695147673,0.6378,2569.2,2568.8,0.6341]
[1729695147980,0.6378,2569.2,2569.1,0.38949]
[1729695148278,1.02727,2569.2,2569.1,0.38949]
[1729695148483,1.02728,2569.2,2569.0,0.38949]
[1729695148985,0.6378,2569.2,2568.8,0.6341]
[1729695149273,0.6378,2569.2,2569.1,0.38949]
[1729695149774,0.6378,2569.2,2568.8,0.38953]
[1729695149775,8.82894246,2569.2,2568.8,0.38953]
[1729695150074,8.82894246,2569.2,2568.5,4.18175]
[1729695150075,3.04,2569.0,2568.5,4.18175]
[1729695150279,3.42951,2569.0,2568.9,0.38952]
[1729695150671,7.91275539,2569.0,2568.9,0.38952]
[1729695150873,7.52324539,2569.0,2568.9,0.38952]
[1729695151383,0.38953,2568.9,2568.8,0.38953]
[1729695151572,3.04,2568.9,2568.8,0.38953]
[1729695151775,3.42952,2568.9,2568.8,0.38953]
[1729695152872,3.04,2568.9,2568.8,0.38953]
[1729695153377,3.04,2569.0,2568.5,0.97396]
[1729695153574,3.04,2569.0,2568.9,0.38952]
[1729695153879,7.49778086,2569.0,2568.9,0.38952]
[1729695154079,3.04,2569.0,2568.9,0.38952]
[1729695154579,3.4295,2569.0,2568.9,0.38952]
[1729695154784,0.38954,2568.8,2568.5,0.38958]
[1729695154972,0.38954,2568.8,2568.4,2.28437]
[1729695154973,3.6627,2568.7,2568.6,0.38957]
[1729695155275,0.6227,2568.7,2568.6,0.38957]
[1729695155572,4.05225,2568.7,2568.6,0.38957]
[1729695156175,3.6627,2568.7,2568.6,0.38957]
[1729695156878,4.05225,2568.7,2568.6,0.38957]
[1729695157275,3.6627,2568.7,2568.6,0.38957]
[1729695158079,0.6227,2568.7,2568.6,0.38957]
[1729695159676,4.05225,2568.7,2568.6,0.38957]
[1729695159973,3.6627,2568.7,2568.3,0.97403]
[1729695160180,3.6627,2568.7,2568.6,0.38957]
[1729695160369,3.6627,2568.7,2568.4,0.38959]
[1729695160370,0.38958,2568.6,2568.4,0.38959]
[1729695160574,3.6888,2568.5,2568.4,0.38959]
[1729695162383,4.07838,2568.5,2568.4,0.38959]
[1729695162572,3.6888,2568.5,2568.4,0.38959]
[1729695163683,4.07838,2568.5,2568.4,0.38959]
[1729695164281,0.38964,2568.2,2568.1,0.38964]
[1729695165079,4.5084,2568.2,2567.9,0.6646]
[1729695165279,3.04,2568.0,2567.9,0.38967]
[1729695165673,7.15281786,2568.0,2567.9,0.38967]
[1729695165873,7.54247786,2568.0,2567.9,0.38967]
[1729695166280,7.15281786,2568.0,2567.6,1.2897]
[1729695166580,1.05048,2567.9,2567.8,0.38968]
[1729695166767,0.38969,2567.8,2567.7,0.38969]
[1729695167186,0.6608,2567.9,2567.6,41.445]
[1729695167475,0.6608,2567.9,2567.7,0.3897]
[1729695167476,4.25828,2567.9,2567.7,0.3897]
[1729695167675,4.25828,2567.9,2567.6,41.445]
[1729695167676,3.8686,2567.9,2567.8,0.38969]
[1729695167979,3.8686,2567.9,2567.6,41.445]
[1729695167980,4.25828,2567.9,2567.7,0.38969]
[1729695168180,4.25828,2567.9,2567.8,0.38969]
[1729695168882,4.25828,2567.9,2567.7,0.38969]
[1729695169074,4.25828,2567.9,2567.6,41.445]
[1729695169075,3.04,2567.8,2567.6,40.8]
[1729695169279,3.04,2567.8,2567.4,0.6447]
[1729695169671,3.04,2567.5,2566.3,3.2078]
[1729695169877,3.04,2567.5,2566.1,1.52542995]
[1729695169878,3.04,2566.5,2565.9,42.0665]
[1729695170187,3.04,2566.0,2565.9,41.18998]
[1729695170401,3.04,2566.0,2565.0,5.24170661]
[1729695170578,3.04,2566.0,2565.4,0.39005]
[1729695170579,3.04,2565.5,2565.4,0.39005]
[1729695171190,3.04,2565.7,2565.4,3.8976]
[1729695171479,3.04,2565.7,2565.6,0.39002]
[1729695172283,3.75,2566.1,2566.0,0.38996]
[1729695173599,4.4978,2566.3,2566.2,0.38993]
[1729695173881,8.2478,2566.3,2566.1,0.38994]
[1729695174275,8.2478,2566.3,2565.8,40.8]
[1729695174480,8.2478,2566.3,2566.1,0.38994]
[1729695175072,6.9578,2566.3,2565.8,40.8]
[1729695175277,6.9578,2566.3,2566.1,0.38994]
[1729695175484,6.9578,2566.3,2566.2,0.38993]
[1729695175884,6.9578,2566.3,2566.1,0.38993]
[1729695176074,6.9578,2566.3,2566.2,0.38993]
[1729695179377,11.17231972,2566.3,2565.8,40.8]
[1729695179582,3.75,2565.9,2565.8,41.18999]
[1729695181008,3.75,2565.9,2565.8,40.8]
[1729695181009,4.28201246,2565.9,2565.8,40.8]
[1729695181188,8.03201246,2565.9,2565.8,0.38999]
[1729695181396,8.03201246,2565.9,2565.5,3.2078]
[1729695181397,3.75,2565.9,2565.6,0.39002]
[1729695181687,4.28201246,2565.9,2565.8,0.38999]
[1729695181894,3.2078,2566.3,2566.2,0.38993]
[1729695182279,3.75,2566.4,2566.3,0.38991]
[1729695182987,3.2078,2566.6,2566.2,40.8]
[1729695183187,3.75,2566.4,2566.3,0.38991]
[1729695184089,4.88867,2566.6,2566.2,40.8]
[1729695184287,3.75,2566.4,2566.2,40.8]
[1729695184495,3.75,2566.4,2566.3,0.38991]
[1729695185793,3.2078,2566.6,2566.5,0.38988]
[1729695185993,6.9578,2566.6,2566.5,0.38988]
[1729695186197,6.9578,2566.6,2566.2,40.8]
[1729695186492,6.9578,2566.6,2566.5,0.38988]
[1729695187591,3.2078,2566.6,2566.5,0.38988]
[1729695188388,2.81781,2566.6,2566.5,4.28588]
[1729695188780,2.81781,2566.6,2566.5,0.38988]
[1729695189292,2.81781,2566.6,2566.5,4.28588]
[1729695190990,3.2078,2567.1,2567.0,0.38981]
[1729695191387,3.75,2567.3,2567.2,0.38978]
[1729695191989,0.38978,2567.2,2566.8,1.04594]
[1729695192295,0.38978,2567.2,2566.6,0.38986]
[1729695192296,0.38985,2566.8,2566.6,0.38986]
[1729695192601,3.75,2566.9,2566.3,2.24569]
[1729695192908,0.38989,2566.5,2566.3,1.2709]
[1729695193091,4.40002445,2566.8,2566.7,0.38985]
[1729695193397,0.38986,2566.7,2566.5,0.38988]
[1729695193690,8.21288643,2566.6,2566.5,0.38988]
[1729695194286,4.46288643,2566.6,2566.5,0.38988]
[1729695194487,4.46288643,2566.6,2566.3,1.2709]
[1729695194488,4.85276643,2566.6,2566.4,0.38989]
[1729695195191,4.46288643,2566.6,2566.3,0.6561]
[1729695195492,4.85276643,2566.6,2566.4,0.38989]
[1729695195692,4.85276643,2566.6,2566.3,0.6561]
[1729695195892,4.85276643,2566.6,2566.4,0.38989]
[1729695196093,0.38989,2566.5,2566.4,0.3899]
[1729695196399,4.85275643,2566.6,2566.5,0.38988]
[1729695196696,4.46288643,2566.6,2566.5,0.38988]
[1729695197102,0.38989,2566.5,2566.3,1.04601]
[1729695197391,0.38989,2566.5,2566.3,0.6561]
[1729695197392,3.04,2566.5,2566.3,0.6561]
[1729695197593,8.70355643,2566.6,2566.4,0.38989]
[1729695197791,3.04,2566.5,2566.4,0.38989]
[1729695197992,7.53010972,2566.5,2566.4,0.38989]